bitfinex/quotes_SOLUSD_20240716
["timestamp","ask_amount","ask_price","bid_price","bid_amount"]
[1721136727437,6.3612,157.21,157.14,15.9089]
[1721136727636,1.59037324,157.2,157.14,15.9089]
[1721136727833,10.0,157.23,157.16,15.9065]
[1721136728137,1.5905744,157.24,157.21,15.9022]
[1721136728346,28.0156,157.27,157.21,15.9022]
[1721136728347,1.59009907,157.26,157.21,15.9022]
[1721136728550,1.59009907,157.26,157.23,6.36]
[1721136729468,1.58993519,157.27,157.23,6.36]
[1721136729678,1.58993519,157.26,157.23,6.36]
[1721136729859,1.58993519,157.26,157.21,15.9022]
[1721136730174,6.3585,157.27,157.22,6.3601]
[1721136730371,1.58993497,157.26,157.22,6.3601]
[1721136730560,1.58993497,157.26,157.23,6.3599]
[1721136730968,1.58993497,157.26,157.18,15.9049]
[1721136731161,1.58993486,157.25,157.19,0.17]
[1721136731461,1.58993486,157.25,157.18,15.9047]
[1721136731640,11.58993486,157.25,157.18,15.9047]
[1721136731844,6.3604,157.23,157.18,22.2665]
[1721136732052,6.3613,157.2,157.15,15.908]
[1721136732263,11.59041208,157.22,157.13,16.0368]
[1721136732264,1.59067222,157.22,157.13,16.0368]
[1721136732471,1.59017616,157.25,157.16,31.8141]
[1721136732776,7.9486453,157.27,157.22,6.3602]
[1721136732939,1.58987367,157.26,157.23,15.8995]
[1721136733144,1.58987367,157.26,157.23,22.2595]
[1721136733441,15.0995,157.29,157.25,15.8974]
[1721136733650,1.58957222,157.28,157.25,22.2565]
[1721136734173,1.58957222,157.28,157.24,6.3595]
[1721136734351,6.3586,157.27,157.22,15.9008]
[1721136734679,1.58989538,157.26,157.22,15.9008]
[1721136734878,6.3593,157.25,157.22,15.9008]
[1721136735169,1.59000434,157.28,157.22,15.9008]
[1721136735369,8.2271322,157.32,157.21,16.1055]
[1721136735608,8.2271322,157.32,157.28,6.358]
[1721136735877,14.5835322,157.32,157.28,6.358]
[1721136736177,8.2271322,157.32,157.29,6.3575]
[1721136736364,1.5898322,157.32,157.29,6.3575]
[1721136736546,1.5898322,157.32,157.28,22.2527]
[1721136736876,6.3576,157.3,157.25,22.2574]
[1721136737081,6.3597,157.24,157.19,6.3614]
[1721136737373,17.65203262,157.29,157.16,53.1772]
[1721136737374,1.59008042,157.27,157.16,53.1772]
[1721136737674,6.3597,157.24,157.19,6.3616]
[1721136737871,1.59014944,157.23,157.19,6.3616]
[1721136738265,1.59014944,157.23,157.2,6.3612]
[1721136738570,6.3611,157.21,157.15,15.9083]
[1721136738772,1.59014944,157.23,157.19,6.3616]
[1721136739148,1.59014944,157.23,157.2,6.361]
[1721136739359,1.59014944,157.23,157.19,15.9036]
[1721136739561,1.59036763,157.24,157.19,15.9036]
[1721136739781,1.59012096,157.25,157.21,6.3609]
[1721136740100,1.59005036,157.28,157.21,15.9016]
[1721136740477,1.59005036,157.28,157.25,22.2566]
[1721136740779,1.59005036,157.28,157.25,15.8974]
[1721136740984,17.79643776,157.32,157.21,31.8025]
[1721136741167,17.79643776,157.32,157.27,15.8956]
[1721136741570,6.3571,157.31,157.27,22.254]
[1721136741800,1.58947034,157.3,157.28,6.3578]
[1721136742093,1.58946966,157.31,157.28,6.3578]
[1721136742289,1.58946966,157.31,157.27,22.2539]
[1721136742586,1.58946966,157.31,157.28,6.358]
[1721136743106,1.58946966,157.31,157.27,21.7539]
[1721136743275,1.58946966,157.31,157.27,15.3956]
[1721136743465,1.58946966,157.31,157.28,6.3579]
[1721136743664,1.58935064,157.32,157.28,6.3579]
[1721136743882,6.3571,157.31,157.27,15.3956]
[1721136744070,1.58951005,157.3,157.23,15.8994]
[1721136744265,6.3585,157.27,157.23,22.2592]
[1721136744468,1.58965506,157.29,157.23,22.2592]
[1721136744787,6.3583,157.28,157.24,6.3595]
[1721136744958,1.58980747,157.28,157.23,15.8994]
[1721136745161,1.58980747,157.28,157.25,6.3592]
[1721136745474,6.3585,157.27,157.23,22.2594]
[1721136745669,7.94790747,157.28,157.23,22.2594]
[1721136745863,6.3603,157.23,157.16,31.8129]
[1721136746069,7.95083973,157.22,157.18,6.3617]
[1721136746382,6.3606,157.22,157.17,15.906]
[1721136746788,6.3601,157.23,157.18,6.362]
[1721136746963,1.5902848,157.22,157.17,15.906]
[1721136747295,1.5902848,157.22,157.19,6.3616]
[1721136747994,1.59028471,157.23,157.19,6.3616]
[1721136748293,7.95048471,157.23,157.19,6.3616]
[1721136748496,6.3605,157.22,157.18,6.3621]
[1721136748681,1.59048575,157.21,157.17,15.906]
[1721136748996,1.59048571,157.2,157.17,15.906]
[1721136749291,32.3759,157.25,157.17,22.2684]
[1721136749292,10.0,157.23,157.17,22.2684]
[1721136749465,1.59056653,157.22,157.17,22.2684]
[1721136749665,1.59056653,157.22,157.18,6.362]
[1721136750192,7.95106653,157.22,157.17,22.2684]
[1721136750500,1.59048462,157.21,157.19,6.3616]
[1721136750674,1.59048462,157.21,157.19,6.3615]
[1721136751069,1.59048462,157.21,157.18,6.362]
[1721136751592,1.59042366,157.22,157.19,6.3616]
[1721136752691,1.59029294,157.23,157.19,6.3616]
[1721136752881,1.59029294,157.23,157.19,15.9035]
[1721136753076,7.9498421,157.24,157.2,6.3613]
[1721136753281,1.59026549,157.23,157.19,15.9035]
[1721136753663,1.59023995,157.24,157.21,6.3608]
[1721136753873,1.59023995,157.23,157.2,6.3611]
[1721136754094,1.59023995,157.23,157.19,22.265]
[1721136754301,1.59023995,157.23,157.2,6.3612]
[1721136754917,7.95007936,157.24,157.19,22.2651]
[1721136755110,1.59020192,157.23,157.2,6.3612]
[1721136755404,1.59020192,157.23,157.21,6.3607]
[1721136755603,1.59020192,157.23,157.2,6.3612]
[1721136755787,16.0256,157.16,157.06,6.65469485]
[1721136755988,16.0256,157.16,157.05,6.567]
[1721136755989,6.3641,157.13,157.05,22.485]
[1721136756187,7.95594267,157.12,157.07,6.3665]
[1721136756388,1.59144216,157.11,157.05,15.918]
[1721136756591,1.59151123,157.1,157.07,6.3665]
[1721136756798,7.95624262,157.12,157.06,6.3666]
[1721136757116,1.59154262,157.12,157.09,6.3654]
[1721136757311,1.59154262,157.12,157.08,15.9146]
[1721136757683,1.59154262,157.12,157.08,22.2806]
[1721136757889,7.95614262,157.12,157.08,15.9146]
[1721136759011,1.59152895,157.11,157.08,22.2805]
[1721136759208,1.59152895,157.13,157.08,15.9146]
[1721136760014,1.59128914,157.15,157.1,6.365]
[1721136760325,1.59120568,157.14,157.08,15.9146]
[1721136760716,1.59120568,157.14,157.1,6.365]
[1721136761723,1.59120568,157.14,157.08,15.9146]
[1721136761914,7.95500568,157.14,157.08,22.2805]
[1721136762224,6.3641,157.13,157.08,15.9146]
[1721136762430,1.5914071,157.12,157.08,15.9146]
[1721136762899,1.5914071,157.12,157.08,22.2806]
[1721136763307,1.59136419,157.13,157.08,15.9146]
[1721136763721,1.59126003,157.15,157.08,15.9146]
[1721136763927,1.59126275,157.14,157.11,6.3648]
[1721136764822,1.59115925,157.13,157.1,22.2781]
[1721136765012,1.591204,157.15,157.1,22.2781]
[1721136765523,1.5911625,157.14,157.1,22.2781]
[1721136765820,7.9548625,157.14,157.1,15.9129]
[1721136766125,6.3642,157.13,157.08,6.3661]
[1721136766434,7.95600584,157.12,157.07,22.2825]
[1721136766609,1.59140584,157.12,157.07,22.2825]
[1721136766816,1.59140584,157.12,157.09,6.3655]
[1721136767128,1.59140584,157.12,157.08,6.366]
[1721136767329,1.59140504,157.14,157.09,15.9135]
[1721136767542,1.59140504,157.14,157.09,22.2791]
[1721136767706,1.59140504,157.14,157.03,0.17]
[1721136768023,6.3642,157.13,157.08,6.3661]
[1721136768205,1.59147933,157.12,157.08,6.3661]
[1721136768406,1.59147933,157.12,157.07,6.3664]
[1721136768407,7.95597933,157.12,157.07,6.3664]
[1721136768609,1.59147933,157.12,157.08,6.3661]
[1721136769222,1.59147933,157.12,157.09,6.3657]
[1721136769431,1.59144311,157.11,157.09,6.3657]
[1721136769736,1.59144297,157.13,157.09,6.3657]
[1721136770106,1.59144297,157.13,157.08,15.9148]
[1721136770308,1.59144297,157.13,157.09,6.3656]
[1721136770611,7.95554297,157.13,157.08,22.2808]
[1721136771513,1.59144297,157.13,157.09,6.3657]
[1721136771717,1.59144297,157.13,157.1,6.3652]
[1721136771908,1.59132767,157.12,157.1,6.3652]
[1721136772111,1.59133775,157.14,157.11,6.3645]
[1721136773157,7.95445517,157.15,157.1,22.2781]
[1721136773317,1.59115663,157.14,157.07,15.9159]
[1721136774441,6.3653,157.11,157.05,6.3672]
[1721136774747,1.59159037,157.1,157.06,6.3668]
[1721136774956,7.95699037,157.1,157.04,15.9188]
[1721136775240,7.95699037,157.1,157.05,6.3673]
[1721136776036,1.59159037,157.1,157.05,6.3673]
[1721136776233,1.59159037,157.1,157.06,6.3667]
[1721136777553,1.59159037,157.1,157.05,6.3672]
[1721136778246,1.59159037,157.1,157.06,6.3669]
[1721136778429,1.59159037,157.1,157.05,6.3672]
[1721136778738,6.3661,157.08,157.04,15.9188]
[1721136778916,1.59187254,157.07,157.04,15.9188]
[1721136779944,1.59187322,157.08,157.04,15.9188]
[1721136780144,6.3659,157.09,157.04,15.9188]
[1721136780145,1.5918733,157.07,157.04,15.9188]
[1721136780353,1.5918733,157.07,157.02,6.3685]
[1721136780733,1.5918733,157.07,157.01,15.922]
[1721136781131,6.3379,157.09,157.01,22.2909]
[1721136781132,7.9589629,157.06,157.01,22.2909]
[1721136781324,7.9589629,157.06,157.01,15.922]
[1721136782043,1.5919629,157.06,157.01,22.2907]
[1721136782346,7.9589629,157.06,157.01,15.922]
[1721136782558,22.3434,157.05,156.99,6.3697]
[1721136782848,22.3434,157.05,156.98,15.9253]
[1721136782849,1.59233891,157.04,157.0,6.3692]
[1721136783037,1.59233891,157.04,156.96,46.8668]
[1721136783236,1.59233891,157.04,157.01,6.3689]
[1721136783543,1.59209321,157.07,157.03,6.3679]
[1721136783749,1.59209321,157.07,157.04,6.3675]
[1721136783956,1.59209321,157.07,157.02,15.921]
[1721136784130,1.59176852,157.12,157.05,15.9184]
[1721136784320,7.95656852,157.12,157.06,6.3668]
[1721136784949,1.59176852,157.12,157.07,15.9158]
[1721136785626,7.95646852,157.12,157.07,15.9158]
[1721136785829,7.95646852,157.12,157.07,22.2823]
[1721136786030,6.3662,157.08,157.04,15.9189]
[1721136786254,1.59171872,157.07,157.03,6.368]
[1721136786557,1.59171872,157.07,157.04,6.3675]
[1721136786731,1.59171872,157.07,157.03,15.9201]
[1721136787127,6.3702,156.98,156.92,6.3723]
[1721136787323,6.3702,156.98,156.89,6.3735]
[1721136787324,11.59304787,156.97,156.89,6.3735]
[1721136787554,10.0,156.94,156.87,15.9359]
[1721136787735,10.0,156.94,156.86,6.3751]
[1721136787736,1.59348574,156.93,156.86,6.3751]
[1721136788048,7.96661784,156.92,156.86,6.3751]
[1721136788248,6.3731,156.91,156.85,6.3754]
[1721136788463,1.59361526,156.9,156.86,6.375]
[1721136789163,1.59361441,156.91,156.87,6.3743]
[1721136789358,1.59361441,156.91,156.84,6.3758]
[1721136789528,6.3739,156.89,156.83,15.9405]
[1721136789853,6.3747,156.87,156.81,6.3771]
[1721136790161,1.59400433,156.86,156.81,6.377]
[1721136790334,10.0,156.9,156.8,15.9436]
[1721136790335,1.59399298,156.85,156.8,15.9436]
[1721136790533,7.96790221,156.89,156.82,6.3767]
[1721136790730,6.3747,156.87,156.8,22.3208]
[1721136791055,1.59407033,156.86,156.81,6.3771]
[1721136791353,10.0,156.88,156.8,15.9429]
[1721136791354,1.59417709,156.85,156.8,15.9429]
[1721136791550,1.59417709,156.85,156.81,6.3767]
[1721136791745,1.59417709,156.85,156.82,6.3764]
[1721136791945,1.59417709,156.85,156.8,22.3203]
[1721136792145,1.59417733,156.86,156.8,15.9429]
[1721136792453,1.59405329,156.85,156.83,6.3762]
[1721136792765,7.96874401,156.87,156.8,22.32]
[1721136793365,7.96874401,156.87,156.79,0.8419054]
[1721136793366,7.60374401,156.87,156.79,0.8419054]
[1721136793659,55.17,156.86,156.79,0.8419054]
[1721136793862,1.5943994,156.85,156.79,0.8419054]
[1721136794163,6.3764,156.83,156.79,0.8419054]
[1721136794463,7.97119908,156.82,156.79,0.8419054]
[1721136794646,1.59445262,156.81,156.79,0.8419054]
[1721136794967,1.59445262,156.85,156.79,0.8419054]
[1721136795265,6.3759,156.84,156.79,0.8419054]
[1721136795468,55.17,156.86,156.79,0.8419054]
[1721136795469,1.5944495,156.83,156.79,0.8419054]
[1721136795641,1.59438774,156.82,156.79,0.8419054]
[1721136795969,1.594391,156.84,156.79,0.8419054]
[1721136796153,1.594391,156.84,156.8,6.3771]
[1721136796339,1.594391,156.84,156.81,15.9427]
[1721136796541,1.594391,156.84,156.79,0.8419054]
[1721136796840,7.97072961,156.83,156.79,0.8419054]
[1721136797045,7.97009711,156.85,156.79,0.8419054]
[1721136797455,7.97009711,156.85,156.8,6.3775]
[1721136797758,7.97009711,156.85,156.79,0.8419054]
[1721136797946,1.59429711,156.85,156.81,6.3771]
[1721136798134,1.59429711,156.85,156.79,7.2195054]
[1721136798646,7.96989711,156.85,156.8,6.3774]
[1721136798844,1.59429711,156.85,156.8,6.3774]
[1721136799252,1.59393451,156.85,156.82,15.9409]
[1721136799472,10.0,156.88,156.79,16.7863054]
[1721136799639,6.3768,156.82,156.79,0.8419054]
[1721136799968,6.376,156.84,156.79,0.8419054]
[1721136800176,7.97063201,156.83,156.79,0.8419054]
[1721136800343,1.59445381,156.82,156.79,0.8419054]
[1721136800542,6.376,156.84,156.79,0.8419054]
[1721136800739,1.59438721,156.83,156.79,0.8419054]
[1721136800941,1.59438828,156.82,156.79,0.8419054]
[1721136801157,1.5943654,156.83,156.79,0.8419054]
[1721136802274,1.59421504,156.84,156.8,6.3775]
[1721136802567,1.59421504,156.84,156.81,6.377]
[1721136802767,1.59421504,156.84,156.8,6.3774]
[1721136802973,1.59421504,156.84,156.79,7.2197054]
[1721136803268,1.59421504,156.84,156.8,15.9433]
[1721136803564,1.59408266,156.88,156.8,15.9433]
[1721136803768,6.3748,156.87,156.8,15.9433]
[1721136803968,7.96917021,156.86,156.8,22.3204]
[1721136804274,7.96871269,156.88,156.82,6.3767]
[1721136804570,6.3748,156.87,156.82,6.3767]
[1721136804747,1.5939518,156.86,156.8,15.9433]
[1721136804951,1.59417621,156.85,156.79,0.8419054]
[1721136805158,6.3775,156.8,156.79,0.8419054]
[1721136805345,10.0,156.83,156.79,0.8419054]
[1721136805563,7.97137964,156.82,156.79,0.8419054]
[1721136806371,1.59457964,156.82,156.79,0.8419054]
[1721136806537,1.5945426,156.81,156.79,0.8419054]
[1721136807457,1.59457359,156.82,156.79,0.8419054]
[1721136807947,7.97137359,156.82,156.79,0.8419054]
[1721136808666,1.59457359,156.82,156.79,0.8419054]
[1721136809944,7.97137359,156.82,156.79,0.8419054]
[1721136810451,1.59457359,156.82,156.79,0.8419054]
[1721136810979,1.59457359,156.82,156.79,7.2194054]
[1721136811180,1.59432944,156.83,156.8,15.9432]
[1721136811346,1.59426415,156.85,156.8,15.9432]
[1721136811664,1.59426415,156.85,156.81,6.3768]
[1721136811871,1.59406156,156.85,156.82,22.3178]
[1721136812048,7.96833285,156.88,156.82,22.3175]
[1721136812547,6.3751,156.86,156.82,15.9412]
[1721136812753,1.59402366,156.85,156.82,15.9412]
[1721136812964,6.3747,156.87,156.82,22.3179]
[1721136813267,1.59392101,156.87,156.84,15.9393]
[1721136813455,1.59379642,156.9,156.79,48.2558054]
[1721136813772,16.6307,156.91,156.79,48.2558054]
[1721136813773,1.59379557,156.89,156.8,45.34]
[1721136814362,1.59379557,156.89,156.86,22.3122]
[1721136814558,1.59366202,156.9,156.86,22.3122]
[1721136814778,1.59366126,156.91,156.87,6.3745]
[1721136814948,1.59349094,156.93,156.87,6.3745]
[1721136815154,1.59349044,156.92,156.89,15.9346]
[1721136815375,1.59332318,156.94,156.84,0.17]
[1721136815665,1.59332318,156.94,156.83,15.9404]
[1721136815869,10.0,156.93,156.83,15.9404]
[1721136816068,6.3738,156.89,156.83,22.3164]
[1721136816376,1.59379646,156.88,156.83,22.3166]
[1721136816745,7.96809646,156.88,156.83,22.3166]
[1721136816953,1.59389534,156.9,156.85,6.3752]
[1721136817176,6.3731,156.91,156.85,6.3752]
[1721136817177,1.59377796,156.89,156.85,6.3752]
[1721136817369,1.59371152,156.9,156.88,22.3099]
[1721136817665,1.59371152,156.9,156.86,6.3749]
[1721136817867,7.96627059,156.92,156.86,6.3749]
[1721136818069,1.59357059,156.92,156.89,6.3738]
[1721136818575,1.59357059,156.92,156.87,22.3106]
[1721136818576,7.96637059,156.92,156.87,22.3106]
[1721136818779,7.96562997,156.94,156.87,22.3106]
[1721136819079,7.96562997,156.94,156.88,6.374]
[1721136819947,6.3723,156.93,156.88,6.374]
[1721136820272,1.59342837,156.92,156.89,6.3738]
[1721136820471,1.59342837,156.93,156.89,6.3738]
[1721136821177,1.59311044,156.95,156.87,31.8731]
[1721136821350,1.59305969,156.97,156.93,15.93]
[1721136821678,1.59305969,156.97,156.93,22.3022]
[1721136821993,1.59284123,156.98,156.96,6.3706]
[1721136822153,7.96194123,157.01,156.96,6.3709]
[1721136822863,6.3695,157.0,156.95,22.299]
[1721136823075,1.59261587,157.0,156.95,22.299]
[1721136823259,1.59261587,157.0,156.96,6.371]
[1721136823586,1.59255102,157.01,156.97,6.3704]
[1721136823882,1.59241072,157.03,156.99,6.3696]
[1721136824360,7.96061072,157.03,156.98,22.2954]
[1721136824874,1.59241072,157.03,156.98,22.2954]
[1721136825086,7.96071072,157.03,156.98,22.2954]
[1721136825552,1.59241072,157.03,156.98,15.9252]
[1721136825748,1.59228111,157.04,156.98,15.9252]
[1721136825975,1.59216501,157.05,157.01,15.9223]
[1721136826173,21.7412,157.08,157.01,15.9223]
[1721136826174,1.59201851,157.07,157.01,15.9223]
[1721136826354,1.59201851,157.07,157.03,6.3681]
[1721136826754,1.59201851,157.07,157.04,6.3677]
[1721136827082,1.59179841,157.11,157.0,35.1]
[1721136827280,1.59155704,157.1,157.05,6.3673]
[1721136827777,7.95695704,157.1,157.04,22.2869]
[1721136828180,11.59167497,157.15,157.06,15.9169]
[1721136828381,1.59134183,157.14,157.08,6.3658]
[1721136828768,6.3645,157.12,157.06,22.2835]
[1721136829080,7.95635751,157.11,157.06,22.2835]
[1721136829278,1.59154895,157.1,157.06,15.9169]
[1721136830081,1.59154895,157.1,157.03,15.92]
[1721136830409,10.0,157.13,157.04,6.3675]
[1721136830410,7.95748819,157.09,157.04,6.3675]
[1721136830590,1.5917648,157.08,157.03,15.92]
[1721136830908,1.59186076,157.09,157.05,6.367]
[1721136831111,1.59186076,157.09,157.06,6.3668]
[1721136831604,1.59171365,157.1,157.08,6.3661]
[1721136831781,1.59154396,157.12,157.07,6.3665]
[1721136832108,1.59154396,157.12,157.0,51.0155]
[1721136832308,1.59154396,157.12,157.08,22.2812]
[1721136832479,1.59139176,157.15,157.08,15.9151]
[1721136832682,1.59122114,157.14,157.08,15.9151]
[1721136833101,1.59122114,157.14,157.09,6.3656]
[1721136833303,1.59122114,157.14,157.11,6.3646]
[1721136833505,1.59122114,157.14,157.1,15.9126]
[1721136833697,1.59116966,157.13,157.1,15.9126]
[1721136833897,1.59117032,157.15,157.1,15.9126]
[1721136834207,1.59117028,157.14,157.1,22.2778]
[1721136834399,7.95487028,157.14,157.1,15.9126]
[1721136834710,6.3642,157.13,157.08,6.3657]
[1721136834911,6.3642,157.13,157.05,6.367]
[1721136834912,6.365,157.11,157.05,6.367]
[1721136835205,6.365,157.11,157.04,47.757]
[1721136835206,1.59144759,157.1,157.06,6.3666]
[1721136835411,1.59144759,157.1,157.05,6.3673]
[1721136835610,1.59144759,157.1,157.04,22.2866]
[1721136835611,6.3656,157.1,157.04,22.2866]
[1721136835779,1.59158789,157.09,157.05,6.3673]
[1721136836508,1.59158752,157.13,157.07,6.3664]
[1721136836712,6.3646,157.12,157.07,6.3664]
[1721136837007,1.5915485,157.13,157.08,15.9147]
[1721136837388,7.9557485,157.13,157.08,22.2807]
[1721136837591,1.5915485,157.13,157.08,15.9147]
[1721136837783,7.95460142,157.15,157.1,6.3653]
[1721136838018,1.59130142,157.15,157.11,6.3649]
[1721136838311,1.59130142,157.15,157.11,6.3648]
[1721136838692,7.95480142,157.15,157.1,15.9127]
[1721136839115,1.59130142,157.15,157.1,22.2777]
[1721136839291,1.59130142,157.15,157.11,6.3648]
[1721136839490,1.59130142,157.15,157.04,51.0087]
[1721136839808,1.591026,157.17,157.12,15.9105]
[1721136840013,6.3625,157.17,157.12,22.2749]
[1721136840215,7.95280461,157.19,157.14,6.3634]
[1721136840412,1.59080461,157.19,157.12,15.9105]
[1721136840594,1.59080461,157.19,157.12,22.2749]
[1721136840595,6.3624,157.18,157.12,22.2749]
[1721136840919,6.3629,157.16,157.12,15.9105]
[1721136841120,6.3629,157.16,157.11,6.3649]
[1721136841121,1.59084104,157.15,157.11,6.3649]
[1721136841300,1.59107965,157.14,157.1,6.3652]
[1721136841625,1.59107763,157.15,157.12,6.3645]
[1721136841793,1.59107726,157.16,157.13,6.3639]
[1721136841989,1.59107726,157.17,157.13,6.3639]
[1721136842196,1.59107726,157.17,157.11,15.912]
[1721136842719,6.3632,157.16,157.11,22.2769]
[1721136842907,1.59098513,157.15,157.11,22.2769]
[1721136843110,7.95295345,157.19,157.14,6.3636]
[1721136843616,1.59095345,157.19,157.13,15.9097]
[1721136843935,1.59095345,157.19,157.15,22.2708]
[1721136844095,7.95265345,157.19,157.15,15.9076]
[1721136844300,1.59074968,157.21,157.15,15.9076]
[1721136844517,10.0,157.22,157.14,6.3637]
[1721136844518,6.362,157.19,157.14,6.3637]
[1721136844721,7.95318123,157.18,157.13,6.3641]
[1721136844892,1.59079497,157.17,157.13,6.3641]
[1721136845315,1.59079497,157.17,157.12,15.911]
[1721136845519,1.59079244,157.21,157.12,15.911]
[1721136845705,1.59078969,157.2,157.14,15.9086]
[1721136846104,1.59078969,157.2,157.18,6.3619]
[1721136846293,1.59054305,157.22,157.18,6.3619]
[1721136846507,6.3612,157.21,157.16,22.2691]
[1721136846732,1.59054305,157.22,157.13,15.9101]
[1721136846733,1.5905414,157.2,157.13,15.9101]
[1721136846941,1.5905414,157.2,157.12,31.822]
[1721136847127,1.59042269,157.22,157.13,45.34]
[1721136847305,11.59042269,157.22,157.12,31.822]
[1721136847506,6.3612,157.21,157.16,6.3629]
[1721136847703,1.59060662,157.21,157.12,31.822]
[1721136847916,1.59060662,157.21,157.18,6.362]
[1721136848123,6.2652,157.23,157.19,6.3616]
[1721136848315,22.6746,157.24,157.19,6.3616]
[1721136848316,1.59032388,157.22,157.19,6.3616]
[1721136848521,1.59035091,157.23,157.19,6.3616]
[1721136848703,1.59035091,157.23,157.18,15.9049]
[1721136848704,7.95045091,157.23,157.18,22.2669]
[1721136849022,1.59035091,157.23,157.19,6.3615]
[1721136849224,1.5903349,157.22,157.18,15.9049]
[1721136849524,6.3601,157.23,157.18,22.2669]
[1721136849726,1.59028498,157.22,157.18,15.9049]
[1721136850024,1.59030419,157.25,157.18,15.9049]
[1721136850420,6.3601,157.23,157.18,15.9049]
[1721136850632,1.59030418,157.22,157.18,22.2669]
[1721136850807,1.59030418,157.22,157.18,15.9049]
[1721136851001,7.95080418,157.22,157.18,15.9049]
[1721136851202,1.59030418,157.22,157.15,15.908]
[1721136851427,6.3609,157.21,157.16,6.3626]
[1721136851623,1.59047712,157.2,157.17,6.3625]
[1721136851828,1.59047712,157.2,157.16,6.3626]
[1721136852122,1.59047712,157.2,157.12,47.7329]
[1721136852628,6.3638,157.14,157.09,22.28]
[1721136852933,7.95547439,157.13,157.08,6.3661]
[1721136853111,1.59126787,157.12,157.08,6.3661]
[1721136853316,6.3638,157.14,157.07,15.9158]
[1721136853637,6.3638,157.14,157.05,15.4935]
[1721136853638,1.59116404,157.13,157.1,6.3653]
[1721136853804,1.59116404,157.13,157.09,22.2795]
[1721136854202,6.3649,157.12,157.06,15.9169]
[1721136854427,7.95599389,157.12,157.07,6.3665]
[1721136854626,1.59139389,157.12,157.07,6.3665]
[1721136854839,7.95599389,157.12,157.06,15.9169]
[1721136855013,1.59139389,157.12,157.09,6.3654]
[1721136855209,1.59123388,157.15,157.08,15.9146]
[1721136855532,1.59116676,157.14,157.08,15.9146]
[1721136855746,1.59120889,157.17,157.08,15.9146]
[1721136855917,6.3637,157.14,157.09,6.3654]
[1721136856119,10.0,157.18,157.08,15.9146]
[1721136856120,1.59116817,157.13,157.1,6.3651]
[1721136856444,1.59114226,157.16,157.13,6.3641]
[1721136856613,1.59114226,157.16,157.12,22.2753]
[1721136856814,1.59114226,157.16,157.12,15.9109]
[1721136857024,7.95414226,157.16,157.11,6.3648]
[1721136857229,1.59114226,157.16,157.11,6.3648]
[1721136857409,1.59096301,157.18,157.11,6.3648]
[1721136857610,6.3632,157.16,157.11,6.3648]
[1721136857839,1.59101251,157.15,157.11,6.3648]
[1721136858009,7.95331239,157.18,157.11,15.9116]
[1721136858211,1.59087278,157.18,157.08,66.0282]
[1721136858432,1.59087278,157.18,157.09,65.34]
[1721136858938,1.59087278,157.18,157.15,6.363]
[1721136859110,1.59087278,157.18,157.16,6.3629]
[1721136859305,1.59068182,157.2,157.15,15.9075]
[1721136859724,6.3621,157.18,157.13,6.364]
[1721136860208,1.59068781,157.17,157.12,15.9108]
[1721136860744,7.95328781,157.17,157.12,22.2753]
[1721136861037,1.59068781,157.17,157.13,6.364]
[1721136861331,1.59097962,157.16,157.13,6.3641]
[1721136861532,1.59097962,157.16,157.12,15.9108]
[1721136861832,1.59086087,157.19,157.15,6.3632]
[1721136862034,7.95256087,157.19,157.14,22.2723]
[1721136862227,1.59086087,157.19,157.15,6.3631]
[1721136862425,7.95256087,157.19,157.14,22.2721]
[1721136862637,1.59072748,157.18,157.15,6.363]
[1721136862837,6.3613,157.2,157.09,20.17]
[1721136862838,1.59074244,157.2,157.18,6.3621]
[1721136863014,7.95129858,157.22,157.17,6.3624]
[1721136863335,7.95099858,157.22,157.17,6.3624]
[1721136863712,6.3609,157.21,157.16,22.2696]
[1721136863912,1.59057358,157.2,157.17,6.3625]
[1721136864343,1.59057358,157.2,157.16,22.2696]
[1721136866136,6.3609,157.21,157.16,15.9068]
[1721136866314,1.59056928,157.2,157.16,22.2696]
[1721136867434,1.59056928,157.2,157.13,15.9098]
[1721136867636,1.59064198,157.22,157.08,31.8307]
[1721136867819,10.0,157.12,157.0,21.0895]